Cogmind - Beta 16 @@@ ROGUE MODE // 2025.11.19 @ 09:56:26 // Winter2019/RPGLIKE Player: Jaegerpls Result: Destroyed by 6T-4PI(R) with Subdweller Laser Performance ------------- Evolutions (0) 0 Regions Visited (3) 600 Robots Destroyed (46) 230 Value Destroyed (1171) 1171 Prototype IDs (12) 240 Alien Tech Used (0) 0 Bonus (25) 25 TOTAL SCORE: 2266 Bonus ------- Follower Combat Kills 25 Cogmind --------- Core Integrity 0/650 Matter 230/300 Energy 160/160 System Corruption 0% Temperature Cool (6) Movement Treading (160) Location -10/Subcaves Parts ------- > --- POWER (1) -------- Light Nuclear Core > --- PROPULSION (4) --- Spiked Treads > --- UTILITY (5) ------ Machine Analyzer Subdweller Optics Improved Terrain Scanner Hacking Suite Tractor Beam > --- WEAPON (2) ------- Battle Cannon Slug Cannon > --- INVENTORY (2) ---- Tower Shield Peak State ------------ > --- POWER ------------ Light Nuclear Core > --- PROPULSION ------- VTOL Module VTOL Module VTOL Module VTOL Module > --- UTILITY ---------- Machine Analyzer Subdweller Optics Improved Terrain Scanner Hacking Suite Tractor Beam > --- WEAPON ----------- Battle Cannon Slug Cannon > --- INVENTORY -------- Improved Light Cannon [Rating: 29] Favorites ----------- Power Light Nuclear Core Engine Light Ion Engine Power Core Light Nuclear Core Propulsion VTOL Module Treads Light Treads Wheel Subdweller Monowheel Hover Unit Hover Unit Flight Unit VTOL Module Utility Improved Terrain Scanner Device Improved Terrain Scanner Processor Machine Analyzer Hackware Hacking Suite Weapon Improved Light Cannon Energy Cannon Beam Cannon Ballistic Gun Assault Rifle Ballistic Cannon Improved Light Cannon Build | -11 -10 -10 -10 ------- Run | Yrd Mat Min Sub Slots Evolved 8 | 4 1 . 3 Power . | . . . . Propulsion 3 | 1 1 . 1 Utility 4 | 2 . . 2 Weapon 1 | 1 . . . Parts Attached 30 | 6 12 1 11 Power 4 | 1 1 1 1 Engine 3 | 1 1 . 1 Core 1 | . . 1 . Reactor . | . . . . Propulsion 10 | 2 5 . 3 Treads 3 | 2 . . 1 Leg . | . . . . Wheel 1 | . . . 1 Hover 2 | . 2 . . Flight 4 | . 3 . 1 Utility 7 | 1 3 . 3 Device 5 | 1 2 . 2 Storage . | . . . . Processor 1 | . . . 1 Hackware 1 | . 1 . . Protection . | . . . . Artifact . | . . . . Weapon 9 | 2 3 . 4 Energy Gun . | . . . . Energy Cannon 2 | . 1 . 1 Ballistic Gun 2 | 2 . . . Ballistic Cannon 5 | . 2 . 3 Launcher . | . . . . Special Weapon . | . . . . Impact Weapon . | . . . . Slashing Weapon . | . . . . Piercing Weapon . | . . . . Special Melee Weapon . | . . . . Unidentified Prototypes . | . . . . Parts Lost . | . . . . Power . | . . . . Propulsion . | . . . . Utility . | . . . . Weapon . | . . . . Highest Loss Streak . | . . . . To Critical Strikes . | . . . . Average Backups . | . . 1 . Power . | . . . . Propulsion . | . . 1 . Utility . | . . . . Weapon . | . . . . Tool/Special . | . . . . Unused Backups 2 | . 1 . 1 Power . | . . . . Propulsion 1 | . 1 . . Utility 1 | . . . 1 Weapon . | . . . . Tool/Special . | . . . . Average Slot Usage (%) 91 | . 85 100 91 Engine 4 | . 11 10 . Core 4 | . . . 7 Treads 1 | . 3 . 1 Hover 3 | . 15 . . Flight 23 | . 7 33 27 Device 20 | . 19 22 20 Processor 4 | . . . 7 Hackware 9 | . 9 11 8 Energy Cannon 1 | . 7 . . Ballistic Cannon 14 | . 5 22 15 Peak Build Rating 29 | 8 18 20 29 Average Rating 20 | 7 11 18 25 On Entrance 11 | . 8 18 20 Avg Prop Armor Cover (%) 7 | . 5 . 9 Naked Turns . | . . . . Heaviest Build 20 | 9 13 15 20 Greatest Support 40 | 40 40 17 25 Greatest Overweight (x) 2 | 2 1 . . Average Overweight (x) . | . . . . Largest Inventory Capacity 2 | 1 1 1 2 Average Capacity 1 | 1 1 1 1 Most Carried 2 | . 1 1 2 Average Carried . | . . 1 . Final Capacity 2 | 1 1 1 2 Final Carried 2 | . 1 1 2 Class Distribution -------------------- 41% | Scavenger-Scout 24% | Scavenger-Sprinter 13% | Scavenger-Mutant 11% | Scavenger-Skirmisher 9% | Mutant Dominant Class ---------------- Scavenger-Mutant | -10/Materials Scavenger-Sprinter | -10/Mines Scavenger-Scout | -10/Subcaves Resources | -11 -10 -10 -10 ----------- Run | Yrd Mat Min Sub Matter Collected 1691 | 276 360 202 853 Remotely 1097 | . 61 183 853 Salvage Created 1000 | 72 546 148 234 Parts 91 | 4 56 9 22 Haulers Intercepted 1 | . 1 . . Recyclers Shooed 2 | . 2 . . Parts Field Recycled . | . . . . Retrieved Matter . | . . . . Parts Self-Destructed 14 | . . . 14 Prevented . | . . . . Parts Restored . | . . . . Kills | -11 -10 -10 -10 ------- Run | Yrd Mat Min Sub Combat Hostiles Destroyed 33 | . 14 6 13 Guns 3 | . 3 . . Cannons 29 | . 10 6 13 Classes Destroyed 11 | 2 7 . 2 Worker 1 | . 1 . . Builder 1 | . 1 . . Tunneler 1 | 1 . . . Hauler 1 | . 1 . . Recycler 3 | 1 2 . . Operator 3 | . 3 . . Watcher 3 | . 3 . . Swarmer 15 | . 6 3 6 Grunt 12 | . 8 3 1 Sentry 1 | . . . 1 Subdweller 5 | . . . 5 Best Kill Streak 5 | 1 5 2 5 Combat Bots Only 5 | . 3 2 5 Max Kills in Single Turn 1 | 1 1 1 1 Gunslinging . | . . . . Exploded . | . . . . Melee . | . . . . Uniques/NPCs Destroyed . | . . . . Combat | -11 -10 -10 -10 -------- Run | Yrd Mat Min Sub Hostile Shots Fired 173 | . 66 33 74 Missed 65 | . 20 16 29 Hits 108 | . 46 17 45 Projectile 108 | . 46 17 45 Critical Strikes 5 | . . 1 4 Damage Taken 1296 | . 440 184 672 Core 1042 | . 358 144 540 Absorbed by Shields . | . . . . Redirected to Core 810 | . 246 129 435 Core Remaining (%) 100 | 100 . . . Volleys Fired 300 | 4 181 24 91 Largest 2 | 2 2 2 2 Hottest 80 | 40 80 66 73 Shots Fired 431 | 8 217 48 158 Gun 36 | 8 28 . . Cannon 395 | . 189 48 158 Launcher . | . . . . Special . | . . . . Kinetic 282 | 8 68 48 158 Thermal 149 | . 149 . . Explosive . | . . . . Electromagnetic . | . . . . Robot Hit Streak 17 | 3 11 5 17 Robot Miss Streak 6 | 1 5 6 4 Penetration Max . | . . . . Secondary Targets . | . . . . Shots Hit Robots 171 | 5 74 19 73 Core Hits 59 | 3 26 7 23 Critical Kills 1 | . . . 1 Critical Parts Destroyed 1 | . . . 1 Critical Strikes 6 | . 2 . 4 Destroy 3 | . . . 3 Blast 3 | . 2 . 1 Melee Attacks . | . . . . Impact . | . . . . Slashing . | . . . . Piercing . | . . . . Sneak Attacks . | . . . . Combat Hostiles . | . . . . Follow-up Attacks . | . . . . Damage Inflicted 3291 | 46 1330 382 1533 Guns 186 | 46 140 . . Cannons 3105 | . 1190 382 1533 Explosions . | . . . . Melee . | . . . . Ramming . | . . . . Kinetic 2557 | 46 596 382 1533 Thermal 734 | . 734 . . Explosive . | . . . . Electromagnetic . | . . . . Impact . | . . . . Slashing . | . . . . Piercing . | . . . . Highest Corruption . | . . . . Average Corruption . | . . . . Corruption Purged . | . . . . Corruption Blocked . | . . . . Overload Shots . | . . . . Overflow Damage 58 | . 22 2 34 Projectiles 58 | . 22 2 34 Explosions . | . . . . Melee . | . . . . Knockbacks 21 | . 5 3 13 Impact . | . . . . Kinetic 20 | . 5 3 12 Secondary 1 | . . . 1 Self-Inflicted Damage . | . . . . Shots . | . . . . Rammed . | . . . . Targets Rammed . | . . . . Kicked . | . . . . Crushed . | . . . . Highest Temperature 10 | . 2 10 . Average Temperature 2 | . 2 3 . Received Heat Transfer 234 | . 123 63 48 Siege Activations . | . . . . Martial Activations . | . . . . Shielding Activations . | . . . . Robots Disrupted . | . . . . Combat Hostiles . | . . . . Robots Corrupted . | . . . . Combat Hostiles . | . . . . Parts Fried . | . . . . Impact Corruptions . | . . . . Robots Melted 1 | . 1 . . Combat Hostiles 1 | . 1 . . Parts Melted 5 | . 5 . . Heat Transferred 1554 | . 1554 . . Parts Sabotaged . | . . . . Parts Stolen . | . . . . Parts Stripped . | . . . . Power Chain Reactions . | . . . . Alert | -11 -10 -10 -10 ------- Run | Yrd Mat Min Sub Maximum Alert Level 1 | . 1 . . Low Security (%) 97 | 100 93 100 . Level 1 2 | . 6 . . Level 2 . | . . . . Level 3 . | . . . . Level 4 . | . . . . Level 5 . | . . . . High Security . | . . . . Max Security . | . . . . Peak Influence 232 | 5 232 90 . Initial 55 | . . 55 . Average 62 | . 102 33 . Influence Increases 1211 | 10 775 246 180 Destroy 0b10 Robot/C 580 | . 280 140 160 Destroy 0b10 Robot/NC 65 | 10 55 . . Destroy Leader 118 | . 68 30 20 Allied During Kill 7 | . . 7 . Successful Hack 12 | . 7 5 . Disable Machine 300 | . 240 60 . Destroy Structure 84 | . 80 4 . Partial Spotted 15 | . 15 . . Lose Combat Pursuer 30 | . 30 . . Influence Decreases 1185 | 10 632 354 189 Entered New Map 107 | . . 88 19 Time Decay 857 | 10 411 266 170 Purge Threat 221 | . 221 . . Squads Dispatched 3 | . 3 . . Investigation . | . . . . Extermination . | . . . . Reinforcement 3 | . 3 . . Assault . | . . . . Garrison . | . . . . Intercept . | . . . . Searches Triggered . | . . . . Construction Impeded . | . . . . Haulers Reinforced . | . . . . Active Scanning Responses . | . . . . Cargo Convoy Interrupts . | . . . . Stealth | -11 -10 -10 -10 --------- Run | Yrd Mat Min Sub Distress Signals 1 | . 1 . . Communications Jammed . | . . . . Distress Signals . | . . . . Times Spotted 44 | . 21 7 16 Peak Tracking Total 6 | . 3 3 6 Tactical Retreats 2 | . 2 . . Traps | -11 -10 -10 -10 ------- Run | Yrd Mat Min Sub Traps Triggered 2 | . 1 . 1 Indirectly . | . . . . Trap Hack Attempts . | . . . . Triggered . | . . . . Disarmed . | . . . . Reprogrammed . | . . . . Reused . | . . . . Traps Extracted . | . . . . Installed . | . . . . Triggered . | . . . . Machines | -11 -10 -10 -10 ---------- Run | Yrd Mat Min Sub Machines Disabled 21 | . 16 4 1 Max in Single Turn 2 | . 2 1 1 Machines Repaired . | . . . . Machines Dismantled . | . . . . Machines Sabotaged . | . . . . Overloaded Fab Kills . | . . . . Hacking | -11 -10 -10 -10 --------- Run | Yrd Mat Min Sub Machines Accessed 10 | . 6 2 2 Terminals 7 | . 5 2 . Fabricators . | . . . . Repair Stations . | . . . . Recycling Units 1 | . 1 . . Scanalyzers . | . . . . Garrison Access . | . . . . Total Hacks 43 | . 24 5 14 Successful 32 | . 15 3 14 Failed 10 | . 8 2 . Catastrophic . | . . . . Database Lockouts 1 | . 1 . . Manual 28 | . 22 6 . Terminals 26 | . 21 5 . Fabricators . | . . . . Repair Stations . | . . . . Recycling Units 3 | . 3 . . Scanalyzers . | . . . . Garrison Access . | . . . . Terminal Hacks 20 | . 5 1 14 Record 13 | . . . 13 Robot Analysis 2 | . 1 1 . Alert Level 1 | . 1 . . Unreport Threat 2 | . 2 . . Reinforcement Status 1 | . 1 . . Proto ID Catalog 1 | . . . 1 Fabricator Hacks . | . . . . Repair Station Hacks . | . . . . Recycling Unit Hacks 1 | . 1 . . Report Inventory 1 | . 1 . . Scanalyzer . | . . . . Garrison Access Hacks . | . . . . Unauthorized Hacks 11 | . 9 2 . Terminals 9 | . 7 2 . Botnet 4 | . 2 2 . Skim 5 | . 5 . . Fabricators . | . . . . Repair Stations . | . . . . Recycling Units 2 | . 2 . . Reject 1 | . 1 . . Recyclers 1 | . 1 . . Scanalyzers . | . . . . Garrison Access . | . . . . Data Cores Recovered . | . . . . Used . | . . . . Hacking Detections 7 | . 5 2 . Full Trace Events . | . . . . Feedback Events . | . . . . Feedback Blocked . | . . . . Robot Schematics Acquired . | . . . . Robots Built . | . . . . Authchips . | . . . . Time . | . . . . Total Robot Build Rating . | . . . . Part Schematics Acquired . | . . . . Parts Built . | . . . . Authchips . | . . . . Time . | . . . . Total Part Build Rating . | . . . . Part Studies Acquired . | . . . . Parts Repaired . | . . . . Time . | . . . . Parts Recycled . | . . . . Recycled Matter . | . . . . Retrieved Matter . | . . . . Retrieved Components . | . . . . Parts Scanalyzed . | . . . . Part Schematics Acquired . | . . . . Parts Damaged . | . . . . Bothacking | -11 -10 -10 -10 ------------ Run | Yrd Mat Min Sub Used RIF Installer . | . . . . Robots Hacked . | . . . . Non-combat . | . . . . Combat . | . . . . Robot Hacks Applied . | . . . . Relay Couplers Released . | . . . . Fabnet Peak Effective % . | . . . . Robots Rewired . | . . . . Allies Hacked . | . . . . Hacks Repelled . | . . . . Allies | -11 -10 -10 -10 -------- Run | Yrd Mat Min Sub Total Allies 1 | . . 1 . Largest Group 1 | . . 1 . Highest-Rated Group 31 | . . 31 . Highest-Rated Ally 31 | . . 31 . Total Orders . | . . . . Ally Attacks 8 | . . 8 . Total Damage 146 | . . 146 . Kills 1 | . . 1 . Allies Corrupted . | . . . . Allies Melted . | . . . . Intel | -11 -10 -10 -10 ------- Run | Yrd Mat Min Sub Active Infowar (turns) 4862 | 245 1064 791 2762 Optics 466 | . . . 466 Terrain 4862 | 245 1064 791 2762 Machine Analysis 2593 | . . . 2593 Robot Analysis Total 2 | . 1 1 . Derelict Logs Recovered 3 | . . 2 1 Drone Launches . | . . . . Drone Recoveries . | . . . . Exploration | -11 -10 -10 -10 ------------- Run | Yrd Mat Min Sub Turns Passed 4931 | 314 1064 791 2762 Spaces Moved 2941 | 42 801 607 1491 Core 8 | 8 . . . Treads 273 | 34 67 . 172 Legs . | . . . . Wheels 7 | . . . 7 Hover 402 | . 402 . . Flight 2251 | . 332 607 1312 Fastest Speed 26 | 50 29 29 26 Average Speed 44 | 152 53 29 41 Slowest Speed 160 | 160 160 29 160 Overloaded Moves . | . . . . Propulsion Burnouts . | . . . . Robots Hopped 5 | . 1 4 . Potential Cave-ins . | . . . . Cave-ins Triggered . | . . . . Exploration Rate (%) 71 | 5 92 99 88 Regions Visited 3 Branch Regions 2 Pre-discovered Areas 3 | . 1 1 1 Known Exits Taken 1 | . 1 . . Unknown Exits Taken 2 | 1 . 1 . Scrap Searched 14 | . . 1 13 Spaces Dug 1 | . . . 1 Terrain Destroyed 105 | . 94 4 7 Melee . | . . . . Projectile 14 | . 3 4 7 AOE 91 | . 91 . . Terrain Rammed . | . . . . Walls Destroyed . | . . . . Machines Disabled . | . . . . Actions | -11 -10 -10 -10 --------- Run | Yrd Mat Min Sub Total 6139 | 282 1216 1169 3472 Wait 2809 | 231 189 541 1848 Move 2928 | 41 798 598 1491 Hop 5 | . 1 4 . Pick Up 5 | . 2 . 3 Fast Attach 29 | 6 14 . 9 Attach 4 | . . . 4 Detach 9 | . 3 . 6 Swap 4 | . . 1 3 Drop 24 | . 10 1 13 Fire 300 | 4 181 24 91 Melee . | . . . . Ram . | . . . . Kick . | . . . . Crush . | . . . . Escape Stasis . | . . . . Rewire . | . . . . Trap . | . . . . Miscellaneous 22 | . 18 . 4 Route ------- -11/Scrapyard -10/Materials (discovered 6 exits: *Mat x3 / *Min x2 / Sub) -10/Mines (discovered 3 exits: *Mat x2 / *Sub) -10/Subcaves (discovered 3 exits: [*Mat x2] / Rec) History --------- Turn | Location | Event 1 | -11/Scrapyard | Upgraded with Propulsion slot (x1) 1 | -11/Scrapyard | Upgraded with Utility slot (x2) 1 | -11/Scrapyard | Upgraded with Weapon slot (x1) 14 | -11/Scrapyard | Discovered new exit (range 15) 315 | -11/Scrapyard | Entered Materials 316 | -10/Materials | Build established: Mutant 445 | -10/Materials | Discovered new exit (range 14) 692 | -10/Materials | Discovered new exit (range 12) 773 | -10/Materials | Build established: Scavenger-Mutant 904 | -10/Materials | Reached level 2 969 | -10/Materials | Central database locked down 975 | -10/Materials | Discovered new exit (range 9) 1051 | -10/Materials | Identified exit to Materials 1051 | -10/Materials | Identified exit to Mines 1092 | -10/Materials | Loaded intel: 2 recycling unit locations 1110 | -10/Materials | Discovered exit to Materials (range 9) 1125 | -10/Materials | Learned Storage trap positions 1125 | -10/Materials | Upgraded with Propulsion slot (x1) 1133 | -10/Materials | Discovered new exit (range 14) 1160 | -10/Materials | Learned location of 2 exits from Materials 1163 | -10/Materials | Learned Storage trap positions 1195 | -10/Materials | Learned location of Mines (-9) 1227 | -10/Materials | Learned 2 Storage zone layouts 1379 | -10/Materials | Entered Mines 1380 | -10/Mines | Learned 2 Materials zone layouts 1381 | -10/Mines | Reached level 3 1415 | -10/Mines | Met a Derelict bent on vengeance 1431 | -10/Mines | Build established: Scavenger-Sprinter 1474 | -10/Mines | Received a Mining Laser from a helpful Derelict 1650 | -10/Mines | Found a hidden stash of uninstalled traps 1667 | -10/Mines | Discovered exit to Materials (range 12) 1797 | -10/Mines | Learned location of Zion (-7) 1855 | -10/Mines | Discovered exit to Materials (range 14) 2040 | -10/Mines | Discovered new exit (range 13) 2127 | -10/Mines | Reached level 4 2170 | -10/Mines | Entered Subcaves 2171 | -10/Subcaves | Approached by a straggling Scientist 2171 | -10/Subcaves | Identified exit to Recycling 2194 | -10/Subcaves | Learned 2 Materials zone layouts 2291 | -10/Subcaves | Upgraded with Propulsion slot (x1) 2291 | -10/Subcaves | Upgraded with Utility slot (x2) 2413 | -10/Subcaves | Core integrity fell below 50% 2635 | -10/Subcaves | Build established: Scavenger-Scout 2744 | -10/Subcaves | Discovered new exit (range 9) 3440 | -10/Subcaves | Discovered new exit (range 10) 3880 | -10/Subcaves | Disturbed a concealed Subdweller 4110 | -10/Subcaves | Reached level 5 4373 | -10/Subcaves | Visited Clippyterm 4374 | -10/Subcaves | Learned Factory trap positions 4374 | -10/Subcaves | Learned location of Deep Caves (-7) 4484 | -10/Subcaves | Visited 4L-MR0's lab 4517 | -10/Subcaves | Found Tower Shield 4624 | -10/Subcaves | Core integrity fell below 20% 4790 | -10/Subcaves | Build established: Scavenger-Skirmisher 4908 | -10/Subcaves | Disturbed a concealed Subdweller 4932 | -10/Subcaves | Destroyed by 6T-4PI(R) with Subdweller Laser Last Messages --------------- 04638_ ZH-QL7(R) destroyed. 04639_ Acquired 8 matter. 04639_ Acquired 25 matter. 04639_ Acquired 5 matter. 04639_ Acquired 25 matter. 04642_ Acquired 1 matter. 04645_ Acquired 2 matter. 04647_ Acquired 8 matter. 04752_ Upgraded: Core Integrity (+50) 04768_ Acquired 2 matter. 04908_ 6T-4PI(R) angrily emerges from the Twisted Machinery. 04911_ 6T-4PI(R) knocked back. 04912_ Acquired 4 matter. 04914_ 6T-4PI(R) knocked back. 04915_ Acquired 5 matter. 04919_ 6T-4PI(R) affixes Scrap Shield Fragment to Scrap Shield. 04921_ 6T-4PI(R) knocked back. 04922_ Acquired 3 matter. 04922_ Acquired 1 matter. 04928_ Acquired 5 matter. Map ----- +----------------------------------------------------+ | ##??#?#??######?#?###????????????????????????????? | | ##?##?#?####?#?###?###???????????????????????????? | | #####?##?##??###?##?####?#???????????????????????? | | #####?##??#####?#######??????????????????????????? | | ###??#?#?#################???????????????????????? | | #?############################???????????????????? | | ####### #####? #########?#####?????????????????? | | ####### ?###? ######??#####??????????????????? | | ####### ###### #######?#### ??????????????? | | ####### ##### ############ ? ?????????????? | | ###### #### ####### ## ## ????????????? | | ###?###?# # ####### ####????????????? | | ######### ## ###### ? ######???????????? | | ##?#?### ### ###### ] ########??????????# | | ######## ## ## ### ###?####??????????? | | ######### ## ########?????????? | | ######?## ### #######?#????????? | | ###?#### ### ### ## #########?????????? | | ######### # ### ###############???????# | | ######## ## ##########?###???????# | | ######## ############????????# | | ######## ###### # ###########????????# | | # # # # ########## * ############???????? | | ## ######## #####?#####???????? | | #### % ###### #########????????? | | #### # ### ###### ##@ # #########???????? | | ### ##### #### ## # #########???????? | | ####% ##### #### # $$#?######?######?## ###?#??????????# | | ### ##""?? """"############ #?###??????????? | | #### #" "?"? "######## #?##??????????#? | | ### #" ?? ? "######## ####???????????# | | ### # ?? ? ######### ####??????????## | | ## #? ???? ? ??##?####### ?##?####??????## | | ## ##???? ????########### ???###?##???#??# | | ## ###???????#??###?####?###? ? ??####?#???#?# | | # ###??? ?? ???##??##?#??## ######??????#? | | #####?? ? ?????#########??#? ## ########?????? | | #####??????????#?##########? ######?##??????? | | #?????#????###?#?#?###### ###?##?#???#??## | | = #????#?????#??#??###### #############??## | | !%= ?????##?#?########## #########?#?????? | | #??####?########## #########??#????? | | #??###?############# ##########??#??? | | ######?#?############### ##?########?#???? | +----------------------------------------------------+ Best States ------------- Heat Dissipation 47 Energy Generation 15 Energy Capacity 250 Matter Stores 300 Matter Capacity 300 Sight Range 21 Robot Scan Range 4 Terrain Scan Range 16 Terrain Scan Density 310 Evasion (%) 64 Recoil Reduction 2 Offensive Hacking 10 Item Schematics ----------------- None Robot Schematics ------------------ None Fabricated ------------ Nothing Repaired ---------- Nothing Studied --------- None Alien Tech Used ----------------- None Achievements -------------- None Challenges ------------ None RPGLIKE | -11 -10 -10 -10 --------- Run | Yrd Mat Min Sub Levels Raised 4 | . 1 2 1 XP Earned 9322 | 3000 2900 1662 1760 XP Spent 8990 | 2990 900 . 5100 Upgrades 21 | 11 2 . 8 Propulsion Slot 3 | 1 1 . 1 Utility Slot 4 | 2 . . 2 Weapon Slot 1 | 1 . . . Core Integrity 1 | . . . 1 Heat Dissipation 2 | 2 . . . Mass Support 1 | . 1 . . Inventory Capacity 2 | 1 . . 1 Sensor Range 2 | 1 . . 1 Terrain Scan Density 3 | 3 . . . Ranged Accuracy 2 | . . . 2 Protomatter Created 180 | . 157 . 23 Integrity Restored 414 | . 345 . 69 Core 392 | . 323 . 69 Parts 22 | . 22 . . Protomatter Decayed 60 | . 26 . 34 Game ------ Seed ReflexSpikedRay Manual? 0 Play Time 00:53:27 Cumulative 91.7 hours Start 2025.11.19 @ 09:27:11 End 2025.11.19 @ 09:56:26 Sessions 1 Manual Loads 0 Difficulty Rogue Special Mode Winter2019/RPGLIKE Game No. 82 Rogue 82 Adventurer 0 Explorer 0 Win Type - Total 0 Types 0/0/0/0/0/0/0/0/0/0 Lore% 60 Gallery% 39 Achievement% 36 Wizard Run 0 Options --------- Layout 0 ASCII 0 Keyboard 0 Movement Mouse Keybinds 0 Fullscreen 2 Font 24/Smallcaps Map View 76x50 Zoom Use 0% Tactical HUD 1 Map Filters NONE Filters NONE Steam 1 RUN: 4c9a471a-90a1-497d-af51-fe940e344e55